bitfinex/quotes_SOLUSD_20240829
["timestamp","ask_amount","ask_price","bid_price","bid_amount"]
[1724912774098,1.72440133,144.98,144.92,20.0]
[1724912775200,1.72440133,144.98,144.93,12.78127067]
[1724912776108,1.72440133,144.98,144.92,20.0]
[1724912781591,1.72440133,144.98,144.88,32.05884488]
[1724912781592,6.4075,144.97,144.88,32.05884488]
[1724912781800,1.72496535,144.96,144.88,32.05884488]
[1724912782109,1.72495766,144.95,144.88,32.05884488]
[1724912782411,1.72495766,144.95,144.88,37.65470438]
[1724912782624,1.72495766,144.95,144.88,32.05884488]
[1724912782913,1.72495306,144.96,144.89,0.12549]
[1724912783095,1.72498474,144.95,144.89,0.25098]
[1724912783296,1.72498474,144.95,144.89,20.25098]
[1724912783502,16.5451,144.94,144.88,32.05884488]
[1724912783705,1.72521551,144.93,144.86,32.05884488]
[1724912784294,1.72523405,144.92,144.86,32.05884488]
[1724912785411,1.72543202,144.93,144.86,32.05884488]
[1724912785599,1.72550027,144.92,144.86,32.05884488]
[1724912785805,1.72550027,144.92,144.84,32.05884488]
[1724912786709,1.72553481,144.93,144.84,32.05884488]
[1724912786906,1.72553481,144.92,144.84,32.05884488]
[1724912787400,1.72553481,144.92,144.85,20.0]
[1724912788917,1.72553389,144.93,144.85,20.0]
[1724912789126,1.72541355,144.92,144.86,32.05884488]
[1724912790019,1.72546024,144.93,144.86,32.05884488]
[1724912790319,1.72545323,144.92,144.86,32.05884488]
[1724912790617,1.72529424,144.93,144.86,32.05884488]
[1724912790822,1.72535284,144.92,144.86,32.05884488]
[1724912791804,1.72535361,144.93,144.86,32.05884488]
[1724912792002,1.72535367,144.92,144.86,32.05884488]
[1724912792526,1.72535296,144.93,144.88,32.05884488]
[1724912792697,16.5451,144.94,144.89,0.25098]
[1724912793522,16.5451,144.94,144.89,20.25098]
[1724912793700,16.5451,144.94,144.89,20.0]
[1724912793701,1.72497457,144.93,144.89,20.0]
[1724912793900,16.5451,144.94,144.89,20.0]
[1724912794104,1.7249746,144.93,144.89,20.0]
[1724912794410,16.5451,144.94,144.89,20.0]
[1724912794613,16.5451,144.94,144.9,32.30982488]
[1724912795426,16.5451,144.94,144.91,20.0]
[1724912796095,16.5451,144.94,144.93,12.82252834]
[1724912797224,21.9393,144.97,144.93,12.82252834]
[1724912800935,15.5318,144.97,144.93,12.82252834]
[1724912801236,15.5318,144.97,144.91,20.0]
[1724912801237,16.2914,145.0,144.95,12.82252834]
[1724912801528,1.72460782,144.99,144.95,12.82252834]
[1724912802138,18.01600825,145.0,144.95,12.82252834]
[1724912803005,1.72460825,145.0,144.95,12.82252834]
[1724912803205,1.72441939,145.03,144.95,12.82252834]
[1724912803434,1.72441939,145.03,144.97,12.82252834]
[1724912806536,1.72441939,145.03,144.95,12.82252834]
[1724912806745,46.72441939,145.03,144.93,12.82252834]
[1724912806947,53.61951939,145.03,144.94,20.0]
[1724912807324,12.82252834,145.02,144.94,20.0]
[1724912807673,46.72473717,145.01,144.94,20.0]
[1724912808327,1.72473717,145.01,144.94,20.0]
[1724912808536,1.72473717,145.01,144.94,20.69074635]
[1724912809448,1.72473717,145.01,144.94,20.0]
[1724912812349,6.6082,145.0,144.93,12.82252834]
[1724912812525,1.72488235,144.99,144.91,12.82252834]
[1724912812730,1.72485395,144.98,144.91,12.82252834]
[1724912814419,1.72485395,144.98,144.92,20.0]
[1724912814624,15.7343,144.97,144.91,12.82252834]
[1724912814835,1.72502229,144.96,144.91,12.82252834]
[1724912815053,1.72500512,144.95,144.91,12.82252834]
[1724912815355,1.72500512,144.95,144.84,24.1500951]
[1724912815527,1.72500512,144.95,144.89,12.82252834]
[1724912817153,1.72512889,144.96,144.89,12.82252834]
[1724912817340,1.72512889,144.96,144.91,12.82252834]
[1724912817657,1.72512889,144.96,144.93,12.82252834]
[1724912818151,1.72512889,144.96,144.9,71.29011336]
[1724912818359,15.7343,144.97,144.9,71.29011336]
[1724912818656,1.72477758,144.96,144.94,12.82252834]
[1724912818853,1.72477758,144.96,144.92,12.82252834]
[1724912819556,1.72479515,144.96,144.92,12.82252834]
[1724912820252,15.7343,144.97,144.93,1.12051432]
[1724912820429,1.72475068,144.96,144.92,12.82252834]
[1724912820631,1.72475068,144.96,144.9,20.0]
[1724912820845,1.72475068,144.96,144.9,12.82252834]
[1724912825951,12.82252834,144.92,144.83,12.82252834]
[1724912826160,1.72580155,144.91,144.83,12.82252834]
[1724912827440,1.72580155,144.91,144.84,20.0]
[1724912828343,1.72580155,144.91,144.83,20.0]
[1724912830476,1.72580155,144.91,144.84,1.38050668]
[1724912830939,1.72563383,144.9,144.84,33.47710992]
[1724912831140,1.72558525,144.92,144.84,33.47710992]
[1724912833339,1.72558525,144.92,144.85,20.25098]
[1724912837562,1.72558525,144.92,144.85,20.12549]
[1724912837967,1.72558525,144.92,144.86,33.47653712]
[1724912838169,17.39319769,144.93,144.86,33.47653712]
[1724912838372,15.6679,144.93,144.88,32.09660324]
[1724912838667,15.6679,144.93,144.89,21.50454041]
[1724912839267,15.6679,144.93,144.89,20.12549]
[1724912842986,15.6679,144.93,144.9,32.09660324]
[1724912843173,15.6679,144.93,144.9,32.50474432]
[1724912843790,15.6679,144.93,144.9,33.47555994]
[1724912844286,1.72501437,145.0,144.9,33.47555994]
[1724912844287,16.2919,144.97,144.9,33.47555994]
[1724912844488,1.72487976,144.96,144.9,33.47555994]
[1724912844787,1.72487976,144.96,144.91,20.0]
[1724912844980,1.72487976,144.96,144.92,1.37858008]
[1724912846090,1.72487976,144.96,144.91,20.0]
[1724912848969,1.72487976,144.96,144.9,32.09660324]
[1724912849374,1.72487976,144.96,144.88,32.09660324]
[1724912849574,1.72487976,144.96,144.89,20.0]
[1724912850079,1.72487976,144.96,144.89,32.82926738]
[1724912852678,6.4225,144.94,144.84,7.65544374]
[1724912852983,1.7254985,144.93,144.86,12.82926738]
[1724912853179,1.72542087,144.92,144.86,12.82926738]
[1724912853498,1.72542087,144.92,144.83,51.31706952]
[1724912853691,1.72542087,144.92,144.87,12.82926738]
[1724912854202,1.72545499,144.93,144.87,12.82926738]
[1724912854384,1.72544561,144.92,144.87,12.82926738]
[1724912855294,1.72540652,144.93,144.87,12.82926738]
[1724912855495,1.72542938,144.92,144.87,12.82926738]
[1724912856397,1.72543108,144.93,144.87,12.82926738]
[1724912856592,1.72543108,144.93,144.89,12.82926738]
[1724912856797,8.14765025,144.94,144.89,12.82926738]
[1724912857286,8.14765025,144.94,144.91,12.82926738]
[1724912859196,8.14765025,144.94,144.91,12.82926738]
[1724912866086,8.14765025,144.94,144.89,12.82926738]
[1724912871614,8.14765025,144.94,144.87,12.82926738]
[1724912871798,8.14765025,144.94,144.88,20.0]
[1724912872910,8.14765025,144.94,144.87,12.82926738]
[1724912875614,8.14765025,144.94,144.89,12.82926738]
[1724912876190,8.14765025,144.94,144.91,12.82926738]
[1724912876413,6.4225,144.94,144.91,12.82926738]
[1724912876621,15.3197,144.95,144.91,12.82926738]
[1724912879914,1.72488576,144.94,144.91,12.82926738]
[1724912891608,1.72488576,144.94,144.9,12.82926738]
[1724912892427,1.72488576,144.94,144.83,60.75354047]
[1724912892600,1.72488576,144.94,144.88,12.82926738]
[1724912894818,1.72488576,144.94,144.83,60.75354047]
[1724912895130,6.1351,144.93,144.82,15.6238]
[1724912895332,18.12558284,144.92,144.81,2.85478849]
[1724912895635,63.12558284,144.92,144.85,12.82926738]
[1724912899327,18.12558284,144.92,144.87,12.82926738]
[1724912900003,16.3999,144.92,144.91,12.82926738]
[1724912900510,16.5164,144.95,144.91,12.82926738]
[1724912900712,1.72510485,144.94,144.91,12.82926738]
[1724912916837,1.72510485,144.94,144.89,12.82926738]
[1724912924161,1.72510485,144.94,144.84,30.37643541]
[1724912924371,1.72510485,144.94,144.89,12.82926738]
[1724912930863,1.72510485,144.94,144.85,28.80612585]
[1724912931062,1.72510485,144.94,144.88,12.82926738]
[1724912932349,1.72510485,144.94,144.9,12.82926738]
[1724912934643,1.72510485,144.94,144.91,20.0]
[1724912934842,1.72519936,144.97,144.91,20.0]
[1724912935042,46.72519936,144.97,144.91,20.0]
[1724912936275,46.72519936,144.97,144.91,22.9647959]
[1724912936968,1.72519936,144.97,144.92,12.82926738]
[1724912939642,1.72519936,144.97,144.92,15.79379795]
[1724912940471,1.72519936,144.97,144.92,12.82926738]
[1724912941475,1.72519936,144.97,144.93,2.96413509]
[1724912941940,1.72519936,144.97,144.94,12.82926738]
[1724912959285,16.86380081,144.98,144.94,12.82926738]
[1724912959658,16.86380081,144.98,144.96,12.82926738]
[1724912960278,1.72463796,144.97,144.96,12.82926738]
[1724912960687,1.72463448,144.99,144.96,12.82926738]
[1724912960870,1.72463502,144.98,144.96,12.82926738]
[1724912961781,1.72463427,144.99,144.96,12.82926738]
[1724912961983,1.72463768,144.98,144.96,12.82926738]
[1724912962962,1.72463593,144.99,144.96,12.82926738]
[1724912963162,1.72463594,144.98,144.96,12.82926738]
[1724912963776,1.72463594,144.98,144.91,20.0]
[1724912964084,1.72483758,144.99,144.94,12.82926738]
[1724912964277,1.72483752,144.98,144.94,12.82926738]
[1724912966469,1.72483309,144.99,144.94,12.82926738]
[1724912966670,1.72463273,144.98,144.94,12.82926738]
[1724912967581,1.72464828,144.99,144.94,12.82926738]
[1724912967880,1.72463557,144.98,144.94,12.82926738]
[1724912968687,1.72462378,144.99,144.94,12.82926738]
[1724912968992,1.7246333,144.98,144.94,12.82926738]
[1724912969380,6.5115,145.0,144.94,12.82926738]
[1724912969381,1.72463183,144.99,144.94,12.82926738]
[1724912969596,1.72459519,144.98,144.96,12.82926738]
[1724912969787,1.72459519,145.01,144.91,20.0]
[1724912970096,46.72459519,145.01,144.95,12.82926738]
[1724912975715,46.72459519,145.01,144.89,30.17392678]
[1724912975716,15.7117,145.0,144.89,23.67162678]
[1724912976000,15.7117,144.98,144.9,12.82926738]
[1724912976182,1.85073644,144.97,144.86,8.54792678]
[1724912976387,46.85073644,144.97,144.9,12.82926738]
[1724912978201,53.74873644,144.97,144.85,21.4234]
[1724912978502,6.0782,144.96,144.89,12.82926738]
[1724912978674,1.72528279,144.95,144.89,12.82926738]
[1724912980318,1.72528279,144.95,144.91,12.82926738]
[1724912982904,1.72528279,144.95,144.82,2.76365767]
[1724912982905,16.71799,144.94,144.81,28.48575561]
[1724912983083,46.72561913,144.93,144.86,12.82926738]
[1724912983286,1.72546768,144.92,144.86,12.82926738]
[1724912983782,1.72546768,144.92,144.88,12.82926738]
[1724912984231,1.72534572,144.93,144.88,12.82926738]
[1724912984390,1.72543416,144.92,144.88,12.82926738]
[1724912985388,1.7253532,144.93,144.88,12.82926738]
[1724912985588,1.72535299,144.92,144.88,12.82926738]
[1724912986607,1.72535558,144.93,144.88,12.82926738]
[1724912986912,1.7253556,144.92,144.88,12.82926738]
[1724912987987,1.72535374,144.93,144.88,12.82926738]
[1724912988189,1.72535291,144.92,144.88,12.82926738]
[1724912989082,1.72535257,144.93,144.81,28.48575561]
[1724912989287,16.5925,144.94,144.81,28.48575561]
[1724912989288,1.72544503,144.92,144.82,20.0]
[1724912989518,1.72544503,144.92,144.85,12.82926738]
[1724912991114,1.72544503,144.92,144.82,20.0]
[1724912991410,1.72544503,144.92,144.85,12.82926738]
[1724912993221,1.72544503,144.92,144.87,12.82926738]
[1724912993718,1.72541906,144.93,144.87,12.82926738]
[1724912993929,1.72541864,144.92,144.87,12.82926738]
[1724912994919,1.72541822,144.93,144.87,12.82926738]
[1724912995218,1.725418,144.92,144.87,12.82926738]
[1724912996222,1.72541461,144.93,144.87,12.82926738]
[1724912996412,1.7254142,144.92,144.87,12.82926738]
[1724912997618,1.7254142,144.92,144.83,51.31706952]
[1724912997619,1.72541348,144.93,144.89,12.82926738]
[1724912998308,1.7252485,144.92,144.89,12.82926738]
[1724912999226,1.72537874,144.93,144.89,12.82926738]
[1724912999526,1.7253782,144.92,144.89,12.82926738]
[1724913000323,1.72537764,144.93,144.89,12.82926738]
[1724913000513,1.72537753,144.92,144.89,12.82926738]
[1724913001316,1.7253772,144.93,144.89,12.82926738]
[1724913001931,18.31777203,144.94,144.89,12.82926738]
[1724913003100,16.5925,144.94,144.89,12.82926738]
[1724913003306,6.0782,144.96,144.91,12.82926738]
[1724913003614,1.72488607,144.97,144.91,12.82926738]
[1724913004304,1.72488607,144.97,144.89,12.82926738]
[1724913004515,1.72488607,144.97,144.87,12.82926738]
[1724913004516,22.564,144.96,144.87,12.82926738]
[1724913004826,1.72531824,144.95,144.88,20.0]
[1724913005215,46.72531824,144.95,144.88,20.0]
[1724913006632,0.12549,144.94,144.88,20.0]
[1724913006801,15.028,144.93,144.88,20.0]
[1724913007007,1.72555319,144.92,144.87,12.82926738]
[1724913010627,1.72555319,144.92,144.88,1.38005013]
[1724913011427,16.753392,144.93,144.87,12.82926738]
[1724913011733,16.5949,144.97,144.91,12.82926738]
[1724913011904,16.5949,144.97,144.93,12.82926738]
[1724913012105,16.5949,144.97,144.93,14.20768333]
[1724913012512,16.5949,144.97,144.93,12.82926738]
[1724913012715,1.72471492,144.96,144.93,12.82926738]
[1724913013025,1.72471492,144.96,144.92,20.0]
[1724913014330,1.72471492,144.96,144.93,12.82926738]
[1724913015631,16.5949,144.97,144.93,12.82926738]
[1724913015824,1.72476102,144.99,144.93,12.82926738]
[1724913016038,1.72466313,144.98,144.93,14.20747483]
[1724913016934,1.72466608,144.99,144.93,14.20747483]
[1724913017123,1.72466251,144.98,144.95,12.82926738]
[1724913017434,1.72465775,144.99,144.95,12.82926738]
[1724913022245,1.72465775,144.99,144.93,12.82926738]
[1724913022418,15.0858,145.0,144.97,12.82926738]
[1724913022621,1.7245068,145.03,144.97,12.82926738]
[1724913022930,46.7245068,145.03,144.97,12.82926738]
[1724913023848,1.7245068,145.03,144.97,12.82926738]
[1724913024846,1.7245068,145.03,144.95,12.82926738]
[1724913025041,46.7245068,145.03,144.96,20.0]
[1724913029045,46.7245068,145.03,144.97,12.82926738]
[1724913029267,1.7245068,145.03,144.97,12.82926738]
[1724913031851,46.7245068,145.03,144.96,20.0]
[1724913037256,1.7245068,145.03,144.97,12.82926738]
[1724913037569,1.7245068,145.03,145.01,12.82926738]
[1724913037759,1.72396045,145.07,145.01,12.82926738]
[1724913038459,1.72396045,145.07,144.99,12.82926738]
[1724913038653,1.72396045,145.07,145.0,20.0]
[1724913039645,46.72396045,145.07,145.0,20.0]
[1724913041645,0.25098,145.06,144.97,12.82926738]
[1724913041850,1.97518759,145.06,144.97,12.82926738]
[1724913042060,1.97518759,145.06,144.99,12.82926738]
[1724913044670,1.72420759,145.06,144.99,12.82926738]
[1724913044853,1.72396355,145.07,144.94,2.95102218]
[1724913045048,1.72396355,145.07,145.0,12.82926738]
[1724913045450,1.72396355,145.07,145.02,12.82926738]
[1724913047766,1.72396355,145.07,145.06,12.82926738]
[1724913047971,17.2154,145.22,145.08,15.601]
[1724913047972,1.72290239,145.21,145.08,15.601]
[1724913048179,15.3784,145.23,145.11,38.48780214]
[1724913048346,7.77877351,145.26,145.18,51.31706952]
[1724913048542,7.77877351,145.26,145.25,12.82926738]
[1724913049056,7.77877351,145.26,145.23,12.82926738]
[1724913049666,1.72197351,145.26,145.23,12.82926738]
[1724913050449,1.96801927,145.29,145.25,12.82926738]
[1724913051945,1.96801927,145.29,145.18,6.1902]
[1724913052175,1.96801927,145.29,145.24,31.91134701]
[1724913052676,1.96801927,145.29,145.22,31.91134701]
[1724913053573,46.96801927,145.29,145.22,31.91134701]
[1724913054154,1.96801927,145.29,145.22,31.91134701]
[1724913054372,1.96801927,145.29,145.24,31.91134701]
[1724913054875,0.24684,145.29,145.28,31.91134701]
[1724913056173,1.72052525,145.35,145.28,31.91134701]
[1724913056471,1.72052525,145.35,145.31,31.91134701]
[1724913056663,1.72021211,145.37,145.31,31.91134701]
[1724913057362,1.72021211,145.37,145.29,20.0]
[1724913057561,1.72021211,145.37,145.27,32.03683701]
[1724913057562,1.72040326,145.36,145.28,20.0]
[1724913058263,1.72045084,145.37,145.35,31.91134701]
[1724913058462,1.71989799,145.41,145.35,31.91134701]
[1724913058771,2.58473413,145.44,145.37,31.91134701]
[1724913058970,0.8649636,145.44,145.38,20.0]
[1724913059380,0.8649636,145.44,145.39,32.16232701]
[1724913059692,0.8649636,145.44,145.41,31.91134701]
[1724913059978,51.71878185,145.47,145.38,20.0]
[1724913060155,51.71878185,145.47,145.33,16.247]
[1724913060358,31.91134701,145.46,145.35,31.91134701]
[1724913060558,1.71937181,145.45,145.36,20.0]
[1724913060769,1.71937181,145.45,145.37,0.73791017]
[1724913061371,21.71936843,145.47,145.37,0.73791017]
[1724913061868,21.71936843,145.47,145.38,0.12549]
[1724913062057,1.71936843,145.47,145.38,0.12549]
[1724913062252,1.71936843,145.47,145.38,65.25098]
[1724913062458,2.94114296,145.5,145.39,0.73792985]
[1724913062662,31.91134701,145.49,145.4,0.74100881]
[1724913062863,1.71910455,145.48,145.4,0.74100881]
[1724913063470,31.91134701,145.47,145.38,20.0]
[1724913063788,21.84486252,145.46,145.34,20.0]
[1724913063980,46.71937008,145.45,145.35,0.12549]
[1724913064390,35.65729,145.44,145.34,20.0]
[1724913064600,78.75654114,145.43,145.31,38.17074701]
[1724913064889,21.71967882,145.42,145.31,38.17074701]
[1724913065386,15.7461,145.34,145.19,259.783]
[1724913065679,78.88314214,145.33,145.19,6.583]
[1724913065883,31.91134701,145.31,145.19,6.583]
[1724913066091,46.84664166,145.3,145.19,6.583]
[1724913066282,1.72113286,145.29,145.2,1.36973479]
[1724913066585,1.72113286,145.29,145.19,6.583]
[1724913067095,31.91134701,145.28,145.17,7.6311]
[1724913067300,1.7213063,145.27,145.17,39.54244701]
[1724913067481,1.72120433,145.29,145.19,31.91134701]
[1724913067675,1.72120433,145.29,145.2,1.3697808]
[1724913068774,1.72120433,145.29,145.19,1.36978549]
[1724913069080,1.72120433,145.29,145.19,21.36978549]
[1724913069291,1.72120433,145.29,145.19,20.0]
[1724913069494,1.72120433,145.29,145.18,20.0]
[1724913070375,1.72120433,145.29,145.18,59.91260264]
[1724913070705,1.72120433,145.29,145.19,45.0]
[1724913071001,1.72088828,145.31,145.2,60.03809264]
[1724913071327,1.72088828,145.31,145.2,20.12549]
[1724913071604,1.72088828,145.31,145.2,0.12549]
[1724913072291,1.72088828,145.31,145.2,1.49535211]
[1724913072487,46.72088828,145.31,145.21,0.12549]
[1724913072691,46.72088828,145.31,145.21,20.12549]
[1724913072992,0.12549,145.3,145.21,20.0]
[1724913073299,1.97219924,145.3,145.21,20.0]
[1724913073500,1.97219924,145.3,145.2,0.12549]
[1724913073886,1.97219924,145.3,145.19,20.0]
[1724913075005,8.85449924,145.3,145.19,20.0]
[1724913075177,45.0,145.29,145.19,20.0]
[1724913075378,1.72121169,145.28,145.2,0.12549]
[1724913075798,1.72117814,145.3,145.2,40.16358264]
[1724913076006,1.72098357,145.29,145.21,20.0]
[1724913076183,1.72098654,145.33,145.22,0.12549]
[1724913076383,1.97196934,145.32,145.22,0.12549]
[1724913076694,98.76597198,145.32,145.21,20.0]
[1724913076901,45.0,145.31,145.21,20.0]
[1724913077200,1.97221688,145.3,145.19,20.0]
[1724913077403,1.72123708,145.29,145.19,20.0]
[1724913079808,1.72123708,145.29,145.2,1.07757042]
[1724913080183,1.72125815,145.3,145.2,46.07757042]
[1724913080381,1.72094916,145.29,145.21,20.25098]
[1724913080578,1.72098667,145.33,145.22,1.07742201]
[1724913080804,1.72098667,145.32,145.21,20.25098]
[1724913081011,1.72098667,145.32,145.22,0.69796793]
[1724913081701,0.12549,145.31,145.21,20.25098]
[1724913082091,46.72098667,145.32,145.21,20.25098]
[1724913082291,45.0,145.31,145.21,20.25098]
[1724913082492,1.72098474,145.3,145.21,20.25098]
[1724913082688,1.72098614,145.29,145.21,20.25098]
[1724913082892,1.72098609,145.32,145.21,20.25098]
[1724913084699,46.72098609,145.32,145.21,20.25098]
[1724913084908,0.12549,145.31,145.21,20.25098]
[1724913085208,1.84652428,145.31,145.21,20.25098]
[1724913085513,1.84652428,145.31,145.21,20.0]
[1724913085805,0.12549,145.3,145.21,20.0]
[1724913086024,1.84652428,145.31,145.22,1.36991773]
[1724913087689,0.12549,145.3,145.21,20.0]
[1724913088098,0.12549,145.3,145.19,51.92927713]
[1724913088409,1.84652428,145.31,145.2,0.25098]
[1724913088584,1.84652428,145.31,145.21,31.92927713]
[1724913088784,1.84652428,145.31,145.22,20.0]
[1724913089992,1.84652428,145.31,145.21,20.0]
[1724913092212,1.72103428,145.31,145.22,0.25098]
[1724913092520,1.72081994,145.32,145.28,31.92927713]
[1724913092718,15.7461,145.34,145.29,21.36784235]
[1724913092900,15.7461,145.34,145.29,33.29711948]
[1724913093215,15.7461,145.34,145.29,1.36784235]
[1724913093601,15.7461,145.34,145.28,20.0]
[1724913093998,17.46649983,145.34,145.26,20.0]
[1724913094201,17.46649983,145.34,145.27,0.25098]
[1724913095615,17.46649983,145.34,145.27,32.18025713]
[1724913095820,17.46649983,145.34,145.28,20.0]
[1724913096494,17.46649983,145.34,145.25,20.0]
[1724913096696,17.46649983,145.34,145.24,39.88037725]
[1724913097296,45.0,145.33,145.24,39.88037725]
[1724913097496,1.72070111,145.32,145.24,39.88037725]
[1724913099202,1.72070111,145.32,145.25,20.0]
[1724913100114,1.72070111,145.32,145.2,39.88037725]
[1724913100320,0.25098,145.31,145.2,39.88037725]
[1724913100506,1.97209819,145.31,145.2,39.88037725]
[1724913101422,1.97209819,145.31,145.21,20.0]
[1724913102113,1.72096468,145.32,145.22,41.24970842]
[1724913102326,1.72096468,145.32,145.23,20.0]
[1724913102528,1.72096468,145.32,145.24,1.36878411]
[1724913103101,1.72060063,145.33,145.24,1.36878411]
[1724913103413,1.72060116,145.32,145.24,1.36878411]
[1724913103726,1.72060096,145.33,145.24,1.36878411]
[1724913103908,1.72056945,145.32,145.24,1.36878411]
[1724913104929,1.72060253,145.33,145.24,1.36878411]
[1724913105228,1.72060249,145.32,145.24,1.36878411]
[1724913105822,1.72059992,145.33,145.24,1.36878411]
[1724913106022,1.72055416,145.33,145.25,0.12549]
[1724913106207,1.72055416,145.33,145.25,21.61920953]
[1724913107011,17.466558,145.34,145.25,21.61920953]
[1724913107628,17.466558,145.34,145.26,39.88037725]
[1724913107841,17.466558,145.34,145.27,21.49330412]
[1724913109830,15.7461,145.34,145.27,21.49330412]
[1724913110035,17.46628878,145.34,145.27,20.12549]
[1724913110225,17.46628878,145.34,145.27,20.0]
[1724913110415,17.46628878,145.34,145.25,20.12549]
[1724913110622,17.46628878,145.34,145.26,0.12549]
[1724913110926,17.46628878,145.34,145.25,20.12549]
[1724913111129,17.46628878,145.34,145.25,20.0]
[1724913112507,45.12549,145.33,145.23,20.0]
[1724913112712,1.84640688,145.32,145.23,20.0]
[1724913113024,1.72091688,145.32,145.23,20.0]
[1724913113214,1.72091688,145.32,145.24,0.85709594]
[1724913113418,1.72091688,145.32,145.2,39.88037725]
[1724913113635,6.6049,145.29,145.2,39.88037725]
[1724913113830,1.7210826,145.28,145.2,39.88037725]
[1724913115709,1.7210826,145.28,145.18,39.88037725]
[1724913117016,1.7210826,145.28,145.19,22.92788143]
[1724913118137,1.7210826,145.28,145.19,54.8613245]
[1724913118338,1.7210826,145.28,145.19,51.93344307]
[1724913118522,1.7210826,145.28,145.2,1.36999929]
[1724913118712,1.7210826,145.28,145.2,4.29712446]
[1724913118918,1.7210826,145.28,145.2,1.36999929]
[1724913119118,22.6146,145.27,145.17,7.6311]
[1724913119331,1.72162982,145.26,145.17,7.6311]
[1724913119544,8.60592982,145.26,145.17,13.48916594]
[1724913119712,1.72162982,145.26,145.17,13.48916594]
[1724913120034,46.72162982,145.26,145.17,13.48897257]
[1724913120242,0.12549,145.25,145.18,1.22531828]
[1724913120422,1.72175485,145.24,145.18,1.22531828]
[1724913120627,1.72156397,145.25,145.18,1.22531828]
[1724913121717,6.1687,145.24,145.18,1.22531828]
[1724913121917,1.72177189,145.23,145.18,1.22531828]
[1724913125836,7.89044485,145.24,145.18,1.22531828]
[1724913126543,6.1687,145.24,145.18,1.22531828]
[1724913126747,6.1687,145.24,145.18,21.22531828]
[1724913127255,1.72137746,145.23,145.18,21.22531828]
[1724913128253,1.721548,145.23,145.18,21.22531828]
[1724913128434,6.1687,145.24,145.18,21.22531828]
[1724913128953,1.72155486,145.23,145.18,21.22531828]
[1724913129348,1.72155486,145.23,145.18,20.0]
[1724913129743,1.72155486,145.23,145.17,7.6311]
[1724913129744,15.8629,145.22,145.17,7.6311]
[1724913129937,1.72178661,145.21,145.17,7.6311]
[1724913130138,17.58467121,145.22,145.17,7.6311]
[1724913130340,15.8629,145.22,145.18,20.0]
[1724913131552,15.8629,145.22,145.19,0.12549]
[1724913132964,15.8629,145.22,145.19,1.46495092]
[1724913133266,6.1687,145.24,145.19,1.46495092]
[1724913133433,16.6664,145.26,145.19,1.46495092]
[1724913135649,16.6664,145.26,145.2,0.12549]
[1724913135851,16.6664,145.26,145.2,20.12549]
[1724913136042,16.6664,145.26,145.21,0.12549]
[1724913136366,16.6664,145.26,145.2,20.0]
[1724913136549,16.6664,145.26,145.18,31.93344307]
[1724913136550,16.6664,145.26,145.19,20.0]
[1724913137961,16.6664,145.26,145.2,1.36995697]
[1724913138179,16.6664,145.26,145.19,20.0]
[1724913138470,16.6664,145.26,145.2,0.12549]
[1724913138639,16.6664,145.26,145.19,20.0]
[1724913139069,16.6664,145.26,145.2,1.36993643]
[1724913139774,16.6664,145.26,145.19,20.0]
[1724913141256,16.6664,145.26,145.2,77.05893307]
[1724913141452,16.6664,145.26,145.21,20.12549]
[1724913141662,16.6664,145.26,145.22,0.12549]
[1724913141863,15.7767,145.3,145.24,31.93344307]
[1724913142054,15.7767,145.3,145.25,20.12549]
[1724913142470,15.7767,145.3,145.26,1.19292343]
[1724913144074,17.49730059,145.3,145.26,1.19292343]
[1724913144248,15.7767,145.3,145.24,1.19292343]
[1724913144453,15.7767,145.3,145.25,0.12549]
[1724913144667,15.7767,145.3,145.25,21.19275919]
[1724913144864,15.7767,145.3,145.25,1.19275919]
[1724913145765,15.7767,145.3,145.26,1.19259519]
[1724913146565,1.72060059,145.34,145.28,31.93344307]
[1724913146566,16.4371,145.34,145.28,31.93344307]
[1724913146772,16.4371,145.34,145.29,21.61816787]
[1724913147073,16.4371,145.34,145.29,20.0]
[1724913147277,1.72032725,145.33,145.29,20.0]
[1724913147577,1.72032725,145.33,145.24,20.0]
[1724913147877,1.72032725,145.33,145.25,45.25098]
[1724913148063,1.72032725,145.33,145.26,20.0]
[1724913149083,18.15753394,145.34,145.26,20.0]
[1724913149678,16.4371,145.34,145.26,20.0]
[1724913149982,16.4371,145.34,145.27,0.25098]
[1724913150474,16.4371,145.34,145.27,77.18442307]
[1724913150672,16.4371,145.34,145.28,20.0]
[1724913150868,16.4371,145.34,145.29,0.12549]
[1724913152181,16.4371,145.34,145.29,1.49278893]
[1724913153076,16.4371,145.34,145.29,1.36729893]
[1724913153282,16.4371,145.34,145.28,20.0]